Cogmind - Beta 16.1 @@@ ROGUE MODE // 2026.03.08 @ 18:33:59 Player: littleman Result: Core destroyed Performance ------------- Evolutions (1) 500 Regions Visited (6) 1200 Robots Destroyed (28) 140 Value Destroyed (578) 578 Prototype IDs (24) 480 Alien Tech Used (0) 0 Bonus (331) 331 TOTAL SCORE: 3229 Bonus ------- Follower Combat Kills 103 Aligned with FarCom 300 Friendly Fire -72 Cogmind --------- Core Integrity 0/400 Matter 177/300 Energy 100/100 System Corruption 0% Temperature Critical (537) Movement Core (250) Ox4 Location -8/Mines Parts ------- > --- POWER (1) -------- (None) > --- PROPULSION (2) --- (None) > --- UTILITY (3) ------ Medium Storage Unit Seismic Detector > --- WEAPON (3) ------- Spread Laser Light Assault Rifle > --- INVENTORY (10) --- Sensor Array Signal Interpreter Modified TNC Targeting Computer Light Armor Plating Tractor Beam Beam Rifle Latent Energy Streamer Peak State ------------ > --- POWER ------------ Light Ion Engine > --- PROPULSION ------- Improved Aluminum Leg Improved Aluminum Leg > --- UTILITY ---------- Medium Storage Unit Improved Terrain Scanner Seismic Detector > --- WEAPON ----------- Latent Energy Streamer Advanced Beam Cannon Light Cannon > --- INVENTORY -------- Sensor Array Signal Interpreter Targeting Computer Light Armor Plating Tractor Beam Beam Rifle Spread Laser Light Assault Rifle [Rating: 25] Favorites ----------- Power Light Ion Engine Engine Light Ion Engine Propulsion Aluminum Leg Leg Aluminum Leg Utility Medium Storage Unit Device Improved Terrain Scanner Storage Medium Storage Unit Protection Medium Armor Plating Weapon Assault Rifle Energy Gun Spread Laser Energy Cannon Advanced Beam Cannon Ballistic Gun Assault Rifle Ballistic Cannon Light Cannon Launcher Grenade Launcher Build | -11 -10 -10 -9 -9 -9 -8 ------- Run | Yrd Mat Min Mat Min Exi Min Slots Evolved 2 | . . . 2 . . . Power . | . . . . . . . Propulsion . | . . . . . . . Utility 1 | . . . 1 . . . Weapon 1 | . . . 1 . . . Parts Attached 20 | 6 2 1 7 1 1 2 Power 2 | 1 . . 1 . . . Engine 2 | 1 . . 1 . . . Core . | . . . . . . . Reactor . | . . . . . . . Propulsion 4 | 2 . . 2 . . . Treads . | . . . . . . . Leg 4 | 2 . . 2 . . . Wheel . | . . . . . . . Hover . | . . . . . . . Flight . | . . . . . . . Utility 5 | 1 2 1 1 . . . Device 2 | . . 1 1 . . . Storage 2 | 1 1 . . . . . Processor . | . . . . . . . Hackware . | . . . . . . . Protection 1 | . 1 . . . . . Artifact . | . . . . . . . Weapon 9 | 2 . . 3 1 1 2 Energy Gun 1 | . . . . . . 1 Energy Cannon 3 | . . . 2 . 1 . Ballistic Gun 3 | 2 . . . . . 1 Ballistic Cannon 1 | . . . 1 . . . Launcher 1 | . . . . 1 . . Special Weapon . | . . . . . . . Impact Weapon . | . . . . . . . Slashing Weapon . | . . . . . . . Piercing Weapon . | . . . . . . . Special Melee Weapon . | . . . . . . . Unidentified Prototypes 1 | . . . 1 . . . Parts Lost 10 | . . 1 3 . . 6 Power 2 | . . . 1 . . 1 Propulsion 2 | . . . . . . 2 Utility 2 | . . 1 . . . 1 Weapon 4 | . . . 2 . . 2 Highest Loss Streak 6 | . . 1 3 . . 6 To Critical Strikes . | . . . . . . . Average Backups 8 | 2 6 8 9 9 8 9 Power . | . . . . . . . Propulsion . | . . . . . . . Utility 4 | . 4 4 4 5 5 6 Weapon 3 | 1 2 3 4 4 3 3 Tool/Special . | . . . . . . . Unused Backups 11 | . 1 1 1 . 1 7 Power . | . . . . . . . Propulsion . | . . . . . . . Utility 7 | . . 1 . . . 6 Weapon 4 | . 1 . 1 . 1 1 Tool/Special . | . . . . . . . Average Slot Usage (%) 96 | . 85 97 92 97 100 88 Engine 12 | . 14 14 9 11 11 11 Leg 24 | . 28 28 22 22 22 14 Device 11 | . . . 18 22 22 22 Storage 12 | . 14 14 11 11 11 11 Protection 4 | . . 11 . . . . Energy Cannon 6 | . . . 10 11 14 15 Ballistic Gun 16 | . 28 28 18 . . . Ballistic Cannon 4 | . . . 2 11 11 7 Launcher 2 | . . . . 8 8 . Peak Build Rating 25 | 6 9 10 16 16 25 25 Average Rating 12 | 4 6 8 14 15 18 18 On Entrance 11 | . 6 9 10 15 16 25 Avg Prop Armor Cover (%) . | . . . . . . . Naked Turns . | . . . . . . . Heaviest Build 32 | 12 24 24 23 25 32 32 Greatest Support 26 | 20 20 20 26 26 26 26 Greatest Overweight (x) 1 | . 1 1 1 . 1 1 Average Overweight (x) . | . . . . . . 1 Largest Inventory Capacity 10 | 8 10 10 10 10 10 10 Average Capacity 9 | 7 8 10 10 10 10 10 Most Carried 10 | 5 9 10 10 10 9 10 Average Carried 8 | 2 6 8 9 9 8 8 Final Capacity 10 | 8 10 10 10 10 10 10 Final Carried 9 | 4 8 9 9 9 9 8 Class Distribution -------------------- 50% | Mutant 49% | Skirmisher Dominant Class ---------------- Mutant | -10/Materials Mutant | -10/Mines Skirmisher | -9/Materials Skirmisher | -9/Mines Skirmisher | -9/Exiles Skirmisher | -8/Mines Resources | -11 -10 -10 -9 -9 -9 -8 ----------- Run | Yrd Mat Min Mat Min Exi Min Matter Collected 767 | 265 . 187 263 52 . . Remotely . | . . . . . . . Salvage Created 838 | 120 . 130 450 66 . 72 Parts 63 | 7 . 13 40 . . 3 Haulers Intercepted . | . . . . . . . Recyclers Shooed . | . . . . . . . Parts Field Recycled . | . . . . . . . Retrieved Matter . | . . . . . . . Parts Self-Destructed . | . . . . . . . Prevented . | . . . . . . . Parts Restored . | . . . . . . . Kills | -11 -10 -10 -9 -9 -9 -8 ------- Run | Yrd Mat Min Mat Min Exi Min Combat Hostiles Destroyed 25 | . . 6 14 3 . 2 Guns 14 | . . 6 6 . . 2 Cannons 8 | . . . 8 . . . AOE 3 | . . . . 3 . . Classes Destroyed 11 | 2 . 2 5 1 . 1 Worker 2 | . . . 1 . . 1 Builder 1 | . . . 1 . . . Tunneler 1 | 1 . . . . . . Recycler 1 | 1 . . . . . . Watcher 1 | . . . 1 . . . Swarmer 12 | . . 5 7 . . . Grunt 4 | . . . 3 . . 1 Brawler 1 | . . . 1 . . . Duelist 1 | . . . . . . 1 Sentry 4 | . . 1 3 . . . Assembled 3 | . . . . 3 . . Best Kill Streak 5 | 2 . 2 5 3 . 3 Combat Bots Only 4 | . . 2 4 3 . 2 Max Kills in Single Turn 3 | 1 . 1 2 3 . 1 Gunslinging . | . . . . . . . Exploded 3 | . . . . 3 . . Melee . | . . . . . . . Uniques/NPCs Destroyed . | . . . . . . . Combat | -11 -10 -10 -9 -9 -9 -8 -------- Run | Yrd Mat Min Mat Min Exi Min Hostile Shots Fired 171 | . . 62 76 . . 33 Missed 50 | . . 24 24 . . 2 Hits 121 | . . 38 52 . . 31 Melee 6 | . . . . . . 6 Projectile 115 | . . 38 52 . . 25 Critical Strikes 5 | . . . . . . 5 Damage Taken 1571 | . . 322 515 . . 734 Core 465 | . . 47 51 . . 367 Absorbed by Shields . | . . . . . . . Core Remaining (%) 90 | 100 . 81 . . . . Volleys Fired 86 | 7 . 20 38 6 . 15 Largest 3 | 2 . 2 3 3 . 3 Hottest 163 | 40 . 40 118 128 . 163 Shots Fired 193 | 14 . 40 98 13 . 28 Gun 113 | 14 . 40 44 . . 15 Cannon 79 | . . . 54 12 . 13 Launcher 1 | . . . . 1 . . Special . | . . . . . . . Kinetic 128 | 14 . 40 60 6 . 8 Thermal 64 | . . . 38 6 . 20 Explosive 1 | . . . . 1 . . Electromagnetic . | . . . . . . . Robot Hit Streak 7 | 7 . 3 5 4 . 5 Robot Miss Streak 9 | 1 . 9 6 2 . 6 Penetration Max . | . . . . . . . Secondary Targets 3 | . . 3 . . . . Max Gunslinging Chain 1 | . . 1 . . . . Shots Hit Robots 86 | 10 . 12 39 4 . 21 Core Hits 75 | 3 . 7 20 23 . 22 Critical Kills . | . . . . . . . Critical Parts Destroyed . | . . . . . . . Critical Strikes . | . . . . . . . Melee Attacks . | . . . . . . . Impact . | . . . . . . . Slashing . | . . . . . . . Piercing . | . . . . . . . Sneak Attacks . | . . . . . . . Combat Hostiles . | . . . . . . . Follow-up Attacks . | . . . . . . . Damage Inflicted 2024 | 138 . 169 740 616 . 361 Guns 751 | 138 . 169 233 . . 211 Cannons 760 | . . . 507 103 . 150 Explosions 513 | . . . . 513 . . Melee . | . . . . . . . Ramming . | . . . . . . . Kinetic 785 | 138 . 169 391 . . 87 Thermal 726 | . . . 349 103 . 274 Explosive 513 | . . . . 513 . . Electromagnetic . | . . . . . . . Impact . | . . . . . . . Slashing . | . . . . . . . Piercing . | . . . . . . . Highest Corruption . | . . . . . . . Average Corruption . | . . . . . . . Corruption Purged . | . . . . . . . Corruption Blocked . | . . . . . . . Overload Shots . | . . . . . . . Overflow Damage 1 | . . . 1 . . . Projectiles 1 | . . . 1 . . . Explosions . | . . . . . . . Melee . | . . . . . . . Knockbacks 1 | . . . . . . 1 Impact . | . . . . . . . Kinetic 1 | . . . . . . 1 Secondary . | . . . . . . . Self-Inflicted Damage . | . . . . . . . Shots . | . . . . . . . Rammed . | . . . . . . . Targets Rammed . | . . . . . . . Kicked . | . . . . . . . Crushed . | . . . . . . . Highest Temperature 793 | . . . 214 108 . 793 Average Temperature 173 | . . . 88 45 . 505 Received Heat Transfer 366 | . . . 87 . . 279 Effects 17 | . . . . . . 17 Shutdowns 3 | . . . . . . 3 Energy Bleed 3 | . . . . . . 3 Interference 3 | . . . . . . 3 Matter Decay 3 | . . . . . . 3 Damage (minor) 2 | . . . . . . 2 Damage (major) 1 | . . . . . . 1 Damage (core) 2 | . . . . . . 2 Siege Activations . | . . . . . . . Martial Activations . | . . . . . . . Shielding Activations . | . . . . . . . Robots Disrupted . | . . . . . . . Combat Hostiles . | . . . . . . . Robots Corrupted . | . . . . . . . Combat Hostiles . | . . . . . . . Parts Fried . | . . . . . . . Impact Corruptions . | . . . . . . . Robots Melted . | . . . . . . . Combat Hostiles . | . . . . . . . Parts Melted 1 | . . 1 . . . . Heat Transferred 1179 | . . . 629 157 . 393 Parts Sabotaged . | . . . . . . . Parts Stolen . | . . . . . . . Parts Stripped . | . . . . . . . Power Chain Reactions . | . . . . . . . Alert | -11 -10 -10 -9 -9 -9 -8 ------- Run | Yrd Mat Min Mat Min Exi Min Maximum Alert Level . | . . . . . . . Low Security (%) 100 | 100 100 100 100 100 . 100 Level 1 . | . . . . . . . Level 2 . | . . . . . . . Level 3 . | . . . . . . . Level 4 . | . . . . . . . Level 5 . | . . . . . . . High Security . | . . . . . . . Max Security . | . . . . . . . Peak Influence 193 | 5 4 113 193 77 . 40 Initial 72 | . . . 37 72 . . Average 41 | 1 . 36 70 58 . 9 Influence Increases 928 | 10 4 475 379 5 . 55 Destroy 0b10 Robot/C 660 | . . 340 280 . . 40 Destroy 0b10 Robot/NC 40 | 10 . 10 15 . . 5 Destroy Leader 122 | . . 50 62 . . 10 Allied During Kill 45 | . . 45 . . . . Successful Hack 7 | . 4 . 3 . . . Disable Machine 15 | . . . 15 . . . Destroy Structure 9 | . . . 4 5 . . Lose Combat Pursuer 30 | . . 30 . . . . Influence Decreases 928 | 10 4 380 289 153 37 55 Entered New Map 208 | . . . 58 113 37 . Time Decay 629 | 10 4 371 184 40 . 20 Lost Part 74 | . . 9 30 . . 35 Lost Ally 17 | . . . 17 . . . Squads Dispatched 3 | . 1 . 2 . . . Investigation 2 | . 1 . 1 . . . Extermination . | . . . . . . . Reinforcement 1 | . . . 1 . . . Assault . | . . . . . . . Garrison . | . . . . . . . Intercept . | . . . . . . . Searches Triggered . | . . . . . . . Construction Impeded . | . . . . . . . Haulers Reinforced . | . . . . . . . Active Scanning Responses . | . . . . . . . Cargo Convoy Interrupts . | . . . . . . . Stealth | -11 -10 -10 -9 -9 -9 -8 --------- Run | Yrd Mat Min Mat Min Exi Min Distress Signals 1 | . . . 1 . . . Communications Jammed . | . . . . . . . Distress Signals . | . . . . . . . Times Spotted 55 | . . 20 19 13 . 3 Peak Tracking Total 20 | . . 3 5 20 . 3 Tactical Retreats 1 | . . 1 . . . . Traps | -11 -10 -10 -9 -9 -9 -8 ------- Run | Yrd Mat Min Mat Min Exi Min Traps Triggered 1 | . . . 1 . . . Indirectly . | . . . . . . . Trap Hack Attempts . | . . . . . . . Triggered . | . . . . . . . Disarmed . | . . . . . . . Reprogrammed . | . . . . . . . Reused . | . . . . . . . Traps Extracted . | . . . . . . . Installed . | . . . . . . . Triggered . | . . . . . . . Machines | -11 -10 -10 -9 -9 -9 -8 ---------- Run | Yrd Mat Min Mat Min Exi Min Machines Disabled 1 | . . . 1 . . . Max in Single Turn 1 | . . . 1 . . . Machines Repaired . | . . . . . . . Machines Dismantled . | . . . . . . . Machines Sabotaged . | . . . . . . . Overloaded Fab Kills . | . . . . . . . Hacking | -11 -10 -10 -9 -9 -9 -8 --------- Run | Yrd Mat Min Mat Min Exi Min Machines Accessed 6 | . 2 . 1 . 3 . Terminals 2 | . 1 . 1 . . . Fabricators . | . . . . . . . Repair Stations . | . . . . . . . Recycling Units 1 | . 1 . . . . . Scanalyzers . | . . . . . . . Garrison Access . | . . . . . . . Total Hacks 10 | . 6 . 1 . 3 . Successful 8 | . 4 . 1 . 3 . Failed 1 | . 1 . . . . . Catastrophic . | . . . . . . . Database Lockouts 1 | . 1 . . . . . Manual 1 | . . . . . 1 . Terminals 5 | . 4 . 1 . . . Fabricators . | . . . . . . . Repair Stations . | . . . . . . . Recycling Units 2 | . 2 . . . . . Scanalyzers . | . . . . . . . Garrison Access . | . . . . . . . Terminal Hacks 6 | . 2 . 1 . 3 . Record 4 | . 2 . . . 2 . Maintenance Status 1 | . . . 1 . . . Proto ID Catalog 1 | . . . . . 1 . Fabricator Hacks . | . . . . . . . Repair Station Hacks . | . . . . . . . Recycling Unit Hacks 2 | . 2 . . . . . Report Inventory 1 | . 1 . . . . . Retrieve Components 1 | . 1 . . . . . Scanalyzer . | . . . . . . . Garrison Access Hacks . | . . . . . . . Unauthorized Hacks . | . . . . . . . Terminals . | . . . . . . . Fabricators . | . . . . . . . Repair Stations . | . . . . . . . Recycling Units . | . . . . . . . Scanalyzers . | . . . . . . . Garrison Access . | . . . . . . . Data Cores Recovered . | . . . . . . . Used . | . . . . . . . Hacking Detections 1 | . 1 . . . . . Full Trace Events 1 | . 1 . . . . . Feedback Events . | . . . . . . . Feedback Blocked . | . . . . . . . Robot Schematics Acquired . | . . . . . . . Robots Built . | . . . . . . . Authchips . | . . . . . . . Time . | . . . . . . . Total Robot Build Rating . | . . . . . . . Part Schematics Acquired . | . . . . . . . Parts Built . | . . . . . . . Authchips . | . . . . . . . Time . | . . . . . . . Total Part Build Rating . | . . . . . . . Part Studies Acquired . | . . . . . . . Parts Repaired . | . . . . . . . Time . | . . . . . . . Parts Recycled . | . . . . . . . Recycled Matter . | . . . . . . . Retrieved Matter . | . . . . . . . Retrieved Components 3 | . 3 . . . . . Parts Scanalyzed . | . . . . . . . Part Schematics Acquired . | . . . . . . . Parts Damaged . | . . . . . . . Bothacking | -11 -10 -10 -9 -9 -9 -8 ------------ Run | Yrd Mat Min Mat Min Exi Min Used RIF Installer . | . . . . . . . Robots Hacked . | . . . . . . . Non-combat . | . . . . . . . Combat . | . . . . . . . Robot Hacks Applied . | . . . . . . . Relay Couplers Released . | . . . . . . . Fabnet Peak Effective % . | . . . . . . . Robots Rewired . | . . . . . . . Allies Hacked . | . . . . . . . Hacks Repelled . | . . . . . . . Allies | -11 -10 -10 -9 -9 -9 -8 -------- Run | Yrd Mat Min Mat Min Exi Min Total Allies 3 | . . 3 . . . . Largest Group 3 | . . 3 2 . . . Highest-Rated Group 40 | . . 40 24 . . . Highest-Rated Ally 16 | . . 16 16 . . . Total Orders . | . . . . . . . Ally Attacks 38 | . . 34 4 . . . Total Damage 364 | . . 351 13 . . . Kills 13 | . . 13 . . . . Allies Corrupted . | . . . . . . . Allies Melted . | . . . . . . . Intel | -11 -10 -10 -9 -9 -9 -8 ------- Run | Yrd Mat Min Mat Min Exi Min Active Infowar (turns) 539 | . . 34 505 . . . Terrain 539 | . . 34 505 . . . Seismic 320 | . . . 320 . . . Robot Analysis Total . | . . . . . . . Derelict Logs Recovered 1 | . . 1 . . . . Drone Launches . | . . . . . . . Drone Recoveries . | . . . . . . . Exploration | -11 -10 -10 -9 -9 -9 -8 ------------- Run | Yrd Mat Min Mat Min Exi Min Turns Passed 2867 | 88 169 1081 598 88 761 82 Spaces Moved 1643 | 51 132 585 251 51 568 5 Core 13 | 13 . . . . . . Treads . | . . . . . . . Legs 1630 | 38 132 585 251 51 568 5 Wheels . | . . . . . . . Hover . | . . . . . . . Flight . | . . . . . . . Fastest Speed 50 | 50 120 120 120 120 120 190 Average Speed 145 | 102 120 169 145 120 133 190 Slowest Speed 190 | 120 190 190 190 120 190 190 Overloaded Moves . | . . . . . . . Propulsion Burnouts . | . . . . . . . Robots Hopped . | . . . . . . . Potential Cave-ins . | . . . . . . . Cave-ins Triggered . | . . . . . . . Exploration Rate (%) 36 | 3 21 91 26 13 93 6 Regions Visited 6 Branch Regions 4 Pre-discovered Areas . | . . . . . . . Known Exits Taken . | . . . . . . . Unknown Exits Taken 6 | 1 1 1 1 1 1 . Scrap Searched 1 | . . . . 1 . . Spaces Dug . | . . . . . . . Terrain Destroyed 5 | . . . . 5 . . Melee . | . . . . . . . Projectile . | . . . . . . . AOE 5 | . . . . 5 . . Terrain Rammed . | . . . . . . . Walls Destroyed . | . . . . . . . Machines Disabled . | . . . . . . . Actions | -11 -10 -10 -9 -9 -9 -8 --------- Run | Yrd Mat Min Mat Min Exi Min Total 1947 | 73 144 635 403 65 572 55 Wait 159 | . . 26 94 7 . 32 Move 1637 | 50 131 584 250 50 567 5 Hop . | . . . . . . . Pick Up 32 | 10 8 3 8 1 2 . Fast Attach . | . . . . . . . Attach 17 | 6 1 1 5 1 1 2 Detach 1 | . . . . . . 1 Swap 5 | . 1 . 4 . . . Drop 10 | . 3 1 4 . 2 . Fire 86 | 7 . 20 38 6 . 15 Melee . | . . . . . . . Ram . | . . . . . . . Kick . | . . . . . . . Crush . | . . . . . . . Escape Stasis . | . . . . . . . Rewire . | . . . . . . . Trap . | . . . . . . . Miscellaneous . | . . . . . . . Route ------- -11/Scrapyard -10/Materials -10/Mines (discovered 2 exits: *Mat x2) -9/Materials -9/Mines -9/Exiles (discovered 2 exits: [*Min x2]) -8/Mines (discovered 1 exit: [*Mat]) History --------- Turn | Location | Event 4 | -11/Scrapyard | Discovered new exit (range 15) 89 | -11/Scrapyard | Entered Materials 101 | -10/Materials | Central database locked down 198 | -10/Materials | Discovered new exit (range 9) 258 | -10/Materials | Entered Mines 316 | -10/Mines | Build established: Mutant 371 | -10/Mines | Assisted by bots powering up and referring to "LRC-V3" 1210 | -10/Mines | Discovered new exit (range 14) 1244 | -10/Mines | Learned Materials security intel 1287 | -10/Mines | Joined a pair of Derelicts in attacking an 0b10 outpost 1330 | -10/Mines | Discovered new exit (range 8) 1339 | -10/Mines | Entered Materials 1339 | -9/Materials | Accompanied by 2 allies 1339 | -9/Materials | Evolved 2 slots: Utility x1, Weapon x1 1641 | -9/Materials | Build established: Skirmisher 1883 | -9/Materials | Lost 3 parts (1p2w) 1927 | -9/Materials | Discovered new exit (range 8) 1937 | -9/Materials | Entered Mines 1938 | -9/Mines | Assembled infested the area 1938 | -9/Mines | YI-UF0 nonchalantly dropped a Grenade Launcher on the ground 1950 | -9/Mines | Met 8R-AWN 2020 | -9/Mines | Discovered new exit (range 5) 2025 | -9/Mines | Entered Exiles 2065 | -9/Exiles | Welcomed by 8R-AWN 2090 | -9/Exiles | Met EX-HEX 2153 | -9/Exiles | Met EX-DEC 2185 | -9/Exiles | Visited The Gauntlet 2403 | -9/Exiles | Discovered new exit (range 14) 2474 | -9/Exiles | Met EX-BIN 2496 | -9/Exiles | Aligned with FarCom system 2497 | -9/Exiles | Given EX-Vault access code 2565 | -9/Exiles | Opened EX-Vault 2576 | -9/Exiles | Found Latent Energy Streamer 2588 | -9/Exiles | Found Modified TNC 2628 | -9/Exiles | Warned to stay clear of 0b10 Research branches 2712 | -9/Exiles | Learned about 8R-AWN's background 2758 | -9/Exiles | Discovered new exit (range 15) 2786 | -9/Exiles | Stole two prototypes: Latent Energy Streamer, Modified TNC 2786 | -9/Exiles | Entered Mines 2786 | -8/Mines | Discovered new exit (range 14) 2850 | -8/Mines | Core integrity fell below 50% 2860 | -8/Mines | Core integrity fell below 20% 2869 | -8/Mines | Core destroyed Last Messages --------------- K-01 Serf collects debris. Overheating: Lgt. Ion Engine damaged (-12). Overheating: System interference. Spread Laser temporarily disabled. K-01 Serf collects debris. Power failure, Lgt. Ion Engine shutdown. K-01 Serf collects debris. Overheating: Core damaged (-80). K-01 Serf collects debris. Imp. Terrain Scanner destroyed. Overheating: Matter decay (-22). Critical hit (Burn: +37). K-01 Serf collects debris. Overheating: Matter decay (-32). Overheating: System interference. Lgt. Assault Rifle temporarily disabled. Lgt. Ion Engine destroyed. K-01 Serf collects debris. Adv. Beam Cannon destroyed. Overheating: Core damaged (-80). Map ----- +----------------------------------------------------+ | | | | | | | | | | | | | | | | | | | | | | | | | | | | | | | | | | | | | | | | | | | ???????????????????????????????????????????? | | ????????????????##?????????????????????????? | | ???????????????## #????????????????????????? | | ???????????????# #############???????????? | | ???????????????#= @%! %k #?????????? | | ???????????????## kk]g #####???????????????? | | ????????????????##% ##??????????????????? | | ?????????????????## [ #??????????????????? | | ?????????????????## ####???????????????? | | ?????????????????# ! #????????? | | ????????????????# ! < #????????? | | ????????????????# ###### #????????? | | ????????????????## #???????####?????????? | | ?????????????????##t ##????????????????????? | | ??????????????????# #?????????????????????? | | ??????????????????# #?????????????????????? | | ??????????????????# u#?????????????????????? | | ??????????????????# #?????????????????????? | | ??????????????????? #?????????????????????? | | ??????????????????? #?????????????????????? | | ??????????????????? ?????????????????????? | | ??????????????????? ?????????????????????? | | ???????????????????# ?????????????????????? | | ???????????????????? ?????????????????????? | | ???????????????????? ?????????????????????? | | ???????????????????????????????????????????? | | ???????????????????????????????????????????? | | ???????????????????????????????????????????? | | ???????????????????????????????????????????? | +----------------------------------------------------+ Best States ------------- Heat Dissipation 28 Energy Generation 10 Energy Capacity 125 Matter Stores 300 Matter Capacity 300 Sight Range 16 Terrain Scan Range 16 Terrain Scan Density 10 Armor Coverage 225 Evasion (%) 55 Item Schematics ----------------- None Robot Schematics ------------------ None Fabricated ------------ Nothing Repaired ---------- Nothing Studied --------- None Alien Tech Used ----------------- None Achievements -------------- Sixth Sense Challenges ------------ None Game ------ Seed StormZipInsulator Manual? 0 Play Time 00:24:29 Cumulative 62.6 hours Start 2026.03.08 @ 18:10:27 End 2026.03.08 @ 18:33:59 Sessions 1 Manual Loads 0 Difficulty Rogue Special Mode None Game No. 5 Rogue 4 Adventurer 1 Explorer 0 Win Type - Total 0 Types 0/0/0/0/0/0/0/0/0/0 Lore% 3 Gallery% 17 Achievement% 18 Wizard Run 0 Options --------- Layout 1 ASCII 0 Keyboard 0 Movement Mouse Keybinds 0 Fullscreen 1 Font 24/Smallcaps Map View 50x35 Zoom Use 0% Tactical HUD 0 Map Filters NONE Filters NONE Steam 1 RUN: 0c907302-7276-44ff-ad41-f78f1d8d9add